bitfinex-derivatives/quotes_ETHF0:USTF0_20250220
["timestamp","ask_amount","ask_price","bid_price","bid_amount"]
[1740042735855,3.7956,2733.3,2733.1,0.73173]
[1740042738352,3.7956,2733.3,2733.2,0.73172]
[1740042738759,3.7956,2733.3,2733.0,1.6948]
[1740042738954,3.7956,2733.3,2733.0,2.42655]
[1740042739258,3.7956,2733.3,2733.1,0.73175]
[1740042740049,3.7956,2733.3,2733.0,1.6948]
[1740042740559,3.7956,2733.3,2733.1,0.73175]
[1740042740958,0.5878,2733.3,2733.1,0.73175]
[1740042741154,0.5878,2733.3,2733.0,1.6948]
[1740042741358,0.5878,2733.3,2733.2,0.73172]
[1740042744466,0.5568,2733.6,2733.5,0.73164]
[1740042744668,0.5644,2733.7,2733.5,2.329]
[1740042744867,0.5644,2733.7,2733.6,0.5388]
[1740042745064,0.5644,2733.7,2733.5,2.329]
[1740042745369,0.57,2733.6,2733.5,2.329]
[1740042747068,0.73164,2733.5,2733.4,2.329]
[1740042747268,3.93944,2733.5,2733.4,2.329]
[1740042747870,4.50524,2733.5,2733.4,2.329]
[1740042748164,0.73171,2733.3,2733.2,2.329]
[1740042751169,0.7317,2733.3,2733.2,2.329]
[1740042752066,0.5575,2733.4,2732.9,0.73179]
[1740042752270,3.2078,2733.0,2732.9,0.73179]
[1740042752663,3.7698,2733.0,2732.8,2.329]
[1740042752868,0.73186,2732.7,2732.6,2.329]
[1740042753072,3.93966,2732.7,2732.6,2.329]
[1740042754273,3.2078,2732.7,2732.6,2.329]
[1740042754575,3.93966,2732.7,2732.6,2.329]
[1740042757173,3.93966,2732.7,2732.6,3.06088]
[1740042757372,3.93966,2732.7,2732.6,2.329]
[1740042759568,3.93966,2732.7,2732.3,0.559993]
[1740042759569,3.2078,2732.7,2732.3,0.559993]
[1740042759770,0.73192,2732.5,2732.4,0.73193]
[1740042760171,1.0968,2732.5,2732.4,0.73193]
[1740042764081,0.73194,2732.4,2732.3,0.005493]
[1740042777482,2.96,2732.5,2732.4,0.73194]
[1740042777675,2.96,2732.5,2732.4,2.43264]
[1740042778478,3.945153,2732.7,2732.5,0.73189]
[1740042779178,3.945173,2732.7,2732.4,2.43261]
[1740042779681,3.213293,2732.7,2732.4,1.7007]
[1740042779880,0.7319,2732.6,2732.4,2.43263]
[1740042780583,0.7319,2732.6,2732.4,1.7007]
[1740042780777,3.945163,2732.7,2732.5,0.73189]
[1740042780975,3.213293,2732.7,2732.6,0.73188]
[1740042781375,3.945153,2732.7,2732.5,0.73189]
[1740042781572,3.213293,2732.7,2732.6,0.73188]
[1740042782276,0.005493,2732.7,2732.6,0.73188]
[1740042788290,3.945153,2732.7,2732.6,2.33]
[1740042790490,0.005493,2732.7,2732.6,3.33]
[1740042790689,0.005493,2732.7,2732.6,4.06188]
[1740042795392,0.005493,2732.7,2732.6,4.06088]
[1740042797593,0.005493,2732.7,2732.6,44.86088]
[1740042798193,0.005493,2732.7,2732.6,4.06088]
[1740042798987,0.005493,2732.7,2732.6,1.0]
[1740042799197,0.005493,2732.7,2732.6,3.329]
[1740042799493,0.005493,2732.7,2732.6,4.06088]
[1740042799994,0.005493,2732.7,2732.6,1.73188]
[1740042800196,0.005493,2732.7,2732.6,4.06088]
[1740042800695,0.737353,2732.7,2732.6,3.329]
[1740042803095,0.737353,2732.7,2732.6,1.0]
[1740042805895,3.945153,2732.7,2732.6,1.0]
[1740042819011,3.945153,2732.7,2732.6,1.73188]
[1740042819310,3.945153,2732.7,2732.6,1.0]
[1740042829110,0.737353,2732.7,2732.6,1.0]
[1740042829315,3.945153,2732.7,2732.6,1.0]
[1740042834417,0.737353,2732.7,2732.6,1.0]
[1740042834618,3.945153,2732.7,2732.6,1.0]
[1740042837923,0.737353,2732.7,2732.6,1.0]
[1740042838219,3.945153,2732.7,2732.6,1.0]
[1740042841218,3.945153,2732.7,2732.6,1.73188]
[1740042841419,3.945153,2732.7,2732.6,1.0]
[1740042843228,3.945153,2732.7,2732.6,1.73188]
[1740042844221,3.945153,2732.7,2732.6,1.0]
[1740042845025,3.945153,2732.7,2732.6,1.73188]
[1740042845422,3.945153,2732.7,2732.6,1.0]
[1740042849728,3.945153,2732.7,2732.6,1.73188]
[1740042850834,0.737353,2732.7,2732.6,1.73188]
[1740042851128,3.945153,2732.7,2732.6,1.73188]
[1740042852433,0.737353,2732.7,2732.6,1.73188]
[1740042852630,3.945153,2732.7,2732.6,1.73188]
[1740042854930,3.945153,2732.7,2732.6,1.0]
[1740042857637,3.945153,2732.7,2732.6,1.73188]
[1740042857830,0.737353,2732.7,2732.6,1.73188]
[1740042858031,3.945153,2732.7,2732.6,1.73188]
[1740042858344,0.737353,2732.7,2732.6,1.73188]
[1740042858536,3.945153,2732.7,2732.6,1.73188]
[1740042865341,0.737353,2732.7,2732.6,1.73188]
[1740042865542,3.945153,2732.7,2732.6,1.73188]
[1740042867846,3.213293,2732.7,2732.6,1.73188]
[1740042868537,0.005493,2732.7,2732.6,1.73188]
[1740042868739,0.005493,2732.7,2732.6,42.53188]
[1740042869840,0.005493,2732.7,2732.6,45.73968]
[1740042872343,0.005493,2732.7,2732.6,4.93968]
[1740042872739,0.005493,2732.7,2732.6,7.26868]
[1740042874149,0.005493,2732.7,2732.6,1.0]
[1740042874353,0.737353,2732.7,2732.6,3.329]
[1740042875246,0.005493,2732.7,2732.6,3.329]
[1740042875453,0.005493,2732.7,2732.6,4.06088]
[1740042889072,0.005493,2732.7,2732.6,44.86088]
[1740042889473,0.005493,2732.7,2732.6,4.06088]
[1740042915688,0.005493,2732.7,2732.6,1.0]
[1740042915990,0.737353,2732.7,2732.6,1.0]
[1740042916184,0.737353,2732.7,2732.6,0.1113]
[1740042916790,0.73194,2732.4,2732.3,0.005493]
[1740042917493,0.73199,2732.2,2732.1,2.328]
[1740042917794,0.73199,2732.3,2732.1,2.328]
[1740042918188,0.73199,2732.3,2732.1,3.06001]
[1740042918388,3.93972,2732.5,2732.3,0.73195]
[1740042918694,3.93973,2732.5,2732.2,0.73198]
[1740042919292,3.2078,2732.5,2732.2,0.73198]
[1740042919488,0.73194,2732.4,2732.2,0.73198]
[1740042919993,0.5766,2732.3,2732.2,0.73198]
[1740042920193,1.30858,2732.3,2732.1,3.06002]
[1740042920394,0.5766,2732.3,2732.1,2.328]
[1740042920694,0.5835,2732.2,2732.1,3.06002]
[1740042921093,0.5835,2732.2,2732.1,2.328]
[1740042921294,0.5835,2732.2,2732.1,3.06002]
[1740042924694,0.5835,2732.2,2732.1,2.328]
[1740042925192,0.5835,2732.2,2732.1,3.06002]
[1740042925696,0.5835,2732.2,2732.1,2.328]
[1740042925897,0.5835,2732.2,2732.1,3.06002]
[1740042926098,0.5835,2732.2,2732.1,2.328]
[1740042926693,0.5835,2732.2,2732.1,3.06002]
[1740042926893,0.5835,2732.2,2732.1,2.328]
[1740042927099,0.5835,2732.2,2732.1,3.06002]
[1740042927598,1.31549,2732.2,2732.1,3.06002]
[1740042927799,1.31549,2732.2,2732.1,2.328]
[1740042928095,0.73204,2732.0,2731.9,0.005493]
[1740042928501,2.96,2732.1,2732.0,0.73204]
[1740042929093,3.5121,2732.1,2732.0,0.73204]
[1740042932102,3.5121,2732.1,2732.0,1.31694]
[1740042932900,0.5521,2732.1,2732.0,3.64494]
[1740042936597,1.28412,2732.1,2732.0,2.328]
[1740042936801,0.73204,2732.0,2731.9,0.005493]
[1740042937003,1.29614,2732.0,2731.9,0.005493]
[1740042940509,7.46394,2732.0,2731.9,0.005493]
[1740042942802,13.46394,2732.0,2731.9,0.005493]
[1740042943008,14.56206,2732.0,2731.0,1.83075]
[1740042943306,3.2078,2731.5,2731.4,0.73218]
[1740042944109,3.93998,2731.5,2731.4,0.73218]
[1740042945108,3.2078,2731.5,2731.4,0.73218]
[1740042946909,3.2078,2731.5,2731.4,0.73221]
[1740042947510,3.2078,2731.8,2731.4,2.329]
[1740042947712,3.2078,2731.8,2731.7,0.73213]
[1740042948614,3.2078,2732.1,2731.5,4.889]
[1740042948815,3.2078,2732.1,2732.0,0.73204]
[1740042949504,3.2078,2732.1,2732.0,2.38504]
[1740042949707,0.5676,2732.3,2732.0,1.653]
[1740042950011,3.2078,2732.4,2732.0,1.653]
[1740042950411,0.73197,2732.3,2732.0,1.653]
[1740042950708,0.73202,2732.1,2732.0,1.0932]
[1740042951013,3.2078,2732.1,2731.9,2.329]
[1740042951212,1.27904,2732.0,2731.9,2.329]
[1740042951815,0.547,2732.0,2731.8,0.5553]
[1740042952011,0.73207,2731.9,2731.8,0.5553]
[1740042952212,0.73207,2731.9,2731.8,2.8843]
[1740042953020,1.6554,2732.0,2731.8,2.8843]
[1740042953215,0.73207,2731.9,2731.8,2.8843]
[1740042955414,2.38746,2732.0,2731.8,3.61638]
[1740042956319,3.2078,2731.9,2731.8,3.61638]
[1740042957221,3.2078,2731.9,2731.8,2.8843]
[1740042957422,3.93987,2731.9,2731.8,2.8843]
[1740042958618,3.93987,2731.9,2731.8,3.6164]
[1740042958825,3.93987,2731.9,2731.8,2.8843]
[1740042959122,3.93987,2731.9,2731.8,0.5553]
[1740042959321,0.73212,2731.8,2731.7,2.328]
[1740042960424,0.73212,2731.8,2731.7,3.06013]
[1740042961624,0.73212,2731.8,2731.7,2.328]
[1740042961830,0.73215,2731.7,2731.6,2.329]
[1740042962331,0.73215,2731.7,2731.6,3.06115]
[1740042962532,0.73212,2731.8,2731.6,3.06115]
[1740042963130,0.73213,2731.7,2731.6,2.329]
[1740042964732,0.73211,2731.8,2731.6,3.06115]
[1740042964927,3.2078,2731.9,2731.6,2.329]
[1740042965134,3.2078,2731.9,2731.8,0.7321]
[1740042965730,3.2078,2731.9,2731.8,1.296]
[1740042966429,3.2078,2731.9,2731.8,0.5639]
[1740042966830,3.2078,2731.9,2731.8,1.296]
[1740042967031,4.9108,2732.3,2731.8,0.5639]
[1740042967226,3.2078,2732.3,2731.8,0.5639]
[1740042967426,3.2078,2732.3,2732.1,0.73201]
[1740042967728,3.93976,2732.3,2732.2,1.6777]
[1740042970236,3.93976,2732.3,2732.2,0.5518]
[1740042976743,0.73196,2732.3,2732.2,0.5518]
[1740042976945,3.93976,2732.3,2732.2,0.5518]
[1740042977639,3.2078,2732.3,2732.1,2.329]
[1740042977944,1.85679,2732.2,2732.1,3.06102]
[1740042978344,1.85679,2732.2,2732.1,2.329]
[1740042979547,2.40949,2732.2,2732.1,3.06102]
[1740042979738,2.40949,2732.2,2732.1,2.329]
[1740042980542,2.40949,2732.2,2732.1,3.06102]
[1740042981748,2.40949,2732.2,2732.1,2.329]
[1740042982247,2.40949,2732.2,2732.1,3.06102]
[1740042982648,2.40949,2732.2,2732.1,2.329]
[1740042983646,0.73202,2732.1,2732.0,2.328]
[1740042984545,0.73202,2732.1,2732.0,3.06004]
[1740042984952,0.73202,2732.1,2732.0,2.328]
[1740042988152,0.73202,2732.1,2732.0,3.06004]
[1740042988455,0.73202,2732.1,2731.9,0.73206]
[1740042988655,0.73202,2732.1,2731.9,3.06006]
[1740042989057,0.73204,2732.0,2731.9,2.328]
[1740042989357,1.6775,2732.2,2731.8,2.8835]
[1740042989557,0.73207,2731.9,2731.8,2.8835]
[1740042990357,4.79019,2731.9,2731.2,0.005493]
[1740042990558,0.73219,2731.5,2731.3,3.06022]
[1740042991454,3.2078,2731.7,2731.3,2.328]
[1740042991661,0.73217,2731.6,2731.3,3.06022]
[1740042993458,0.73217,2731.6,2731.4,0.7322]
[1740042994258,0.73217,2731.6,2731.5,0.5768]
[1740042994964,3.2078,2731.7,2731.2,3.065733]
[1740042995165,3.2078,2731.7,2731.2,3.642533]
[1740042995465,0.73221,2731.4,2731.2,3.642533]
[1740042995665,3.2078,2731.7,2731.2,3.642533]
[1740042995666,0.73219,2731.5,2731.3,0.73222]
[1740042997867,0.73219,2731.5,2731.3,0.73223]
[1740042999372,3.2078,2731.7,2731.2,2.910293]
[1740042999671,0.73219,2731.5,2731.3,0.73222]
[1740043001281,3.69217,2731.6,2731.4,0.7322]
[1740043002071,0.73218,2731.5,2731.4,0.7322]
[1740043002277,0.73218,2731.5,2731.3,0.73222]
[1740043002571,0.73218,2731.5,2731.2,2.910293]
[1740043002770,0.73218,2731.5,2731.4,0.73221]
[1740043002965,0.73218,2731.5,2731.3,0.73221]
[1740043003164,0.73218,2731.5,2731.2,2.910293]
[1740043003367,0.73218,2731.5,2731.4,0.73221]
[1740043003672,0.73218,2731.5,2731.2,2.910293]
[1740043003872,0.73218,2731.5,2731.3,0.73221]
[1740043005073,2.96,2731.6,2731.3,0.73221]
[1740043005269,0.73218,2731.5,2731.3,0.73221]
[1740043005570,2.96,2731.6,2731.2,0.582293]
[1740043005766,0.73223,2731.3,2731.2,0.582293]
[1740043008276,0.73223,2731.3,2731.2,1.314553]
[1740043008485,0.73223,2731.3,2731.2,0.582293]
[1740043009081,0.73223,2731.3,2731.2,1.314553]
[1740043009275,0.73223,2731.3,2731.2,0.582293]
[1740043012489,0.73223,2731.3,2731.2,0.005493]
[1740043018300,3.94003,2731.3,2731.2,0.005493]
[1740043021295,1.83072,2731.1,2730.6,1.1333]
[1740043021494,0.73237,2730.9,2730.8,0.73236]
[1740043021796,3.2078,2730.9,2730.7,0.5337]
[1740043022007,0.73237,2730.8,2730.7,1.26608]
[1740043024094,3.94016,2730.9,2730.8,0.73237]
[1740043025999,0.73237,2730.8,2730.7,1.26608]
[1740043027500,3.2078,2730.9,2730.7,1.26608]
[1740043027799,0.73237,2730.8,2730.7,1.26607]
[1740043028903,3.94017,2730.8,2730.7,1.26607]
[1740043029100,3.94017,2730.8,2730.7,0.5337]
[1740043029500,3.94017,2730.8,2730.7,1.26609]
[1740043029799,3.94017,2730.8,2730.7,0.5337]
[1740043030497,3.94017,2730.8,2730.7,1.26609]
[1740043031902,3.2078,2730.8,2730.7,1.26609]
[1740043032103,3.94017,2730.8,2730.7,1.26609]
[1740043033203,3.2078,2730.8,2730.7,1.26609]
[1740043038709,3.94017,2730.8,2730.7,0.5337]
[1740043039010,3.94017,2730.8,2730.7,1.26609]
[1740043039311,3.2078,2730.8,2730.7,1.26609]
[1740043040110,3.94017,2730.8,2730.7,0.5337]
[1740043040311,3.2078,2730.8,2730.3,0.73249]
[1740043040609,3.2078,2730.8,2730.4,0.5505]
[1740043040810,0.73245,2730.5,2730.4,0.5505]
[1740043045009,3.94025,2730.5,2730.4,0.5505]
[1740043045508,0.73258,2730.0,2729.9,5.5368]
[1740043045714,0.73258,2730.0,2729.8,2.9148]
[1740043046017,0.73258,2730.0,2729.9,0.5514]
[1740043047114,0.5543,2730.1,2729.9,0.5514]
[1740043047318,1.28686,2730.1,2729.9,1.284]
[1740043047608,0.5543,2730.1,2729.9,0.5514]
[1740043047815,0.73258,2730.0,2729.9,0.5514]
[1740043048113,1.28687,2730.1,2729.9,1.284]
[1740043048511,1.28687,2730.1,2729.9,0.5514]
[1740043049115,0.73258,2730.0,2729.9,0.5514]
[1740043049410,0.5543,2730.1,2729.9,0.5514]
[1740043049618,1.28686,2730.1,2729.9,1.284]
[1740043050315,1.28686,2730.1,2729.9,0.5514]
[1740043050709,1.28686,2730.1,2729.9,1.28401]
[1740043050909,1.28686,2730.1,2729.9,0.5514]
[1740043051211,1.28686,2730.1,2729.9,1.284]
[1740043051411,3.2078,2730.2,2729.9,0.5514]
[1740043051717,3.2078,2730.2,2730.0,0.73258]
[1740043051914,3.2078,2730.2,2730.1,0.59]
[1740043052417,3.94033,2730.2,2730.1,0.59]
[1740043052616,0.73257,2730.1,2729.9,1.28399]
[1740043052817,1.27126,2730.1,2729.9,1.284]
[1740043053419,0.5387,2730.1,2730.0,0.73258]
[1740043054520,0.5387,2730.1,2729.9,0.5514]
[1740043054708,0.5387,2730.1,2730.0,0.73258]
[1740043055415,3.94035,2730.2,2730.0,0.73258]
[1740043055620,3.94035,2730.2,2729.9,0.5514]
[1740043055621,3.2078,2730.2,2729.9,0.5514]
[1740043056014,3.94034,2730.2,2730.0,0.73256]
[1740043056721,3.2078,2730.2,2730.1,1.32545]
[1740043057322,3.2078,2730.2,2730.1,0.5929]
[1740043057521,3.2078,2730.2,2730.1,1.32545]
[1740043057821,3.94033,2730.2,2730.1,1.32545]
[1740043058017,3.94033,2730.2,2730.1,0.5929]
[1740043058618,3.2078,2730.2,2730.1,1.32545]
[1740043058819,3.94033,2730.2,2730.1,1.32545]
[1740043059416,3.94033,2730.2,2730.1,0.5929]
[1740043059917,3.94033,2730.2,2730.1,1.32545]
[1740043060319,3.2078,2730.2,2730.1,1.32545]
[1740043062122,3.94033,2730.2,2730.1,1.32545]
[1740043062422,3.94033,2730.2,2730.1,0.5929]
[1740043063020,0.73255,2730.1,2729.9,0.5514]
[1740043063220,0.73255,2730.1,2729.9,1.28399]
[1740043063822,3.2078,2730.2,2729.9,0.5514]
[1740043064021,0.73258,2730.1,2729.9,1.284]
[1740043064221,3.2078,2730.2,2729.9,1.284]
[1740043064419,0.73258,2730.0,2729.9,0.5514]
[1740043064624,3.2078,2730.2,2729.9,0.5514]
[1740043064918,0.73258,2730.0,2729.9,1.284]
[1740043065128,0.73258,2730.0,2729.9,0.5514]
[1740043065822,0.73257,2730.1,2729.9,1.28399]
[1740043066022,1.1067,2730.0,2729.9,1.28399]
[1740043066222,1.6715,2730.0,2729.9,1.28399]
[1740043067517,0.5552,2730.0,2729.9,1.28399]
[1740043067717,3.2078,2730.2,2729.9,0.5514]
[1740043068123,3.94034,2730.2,2730.0,0.73257]
[1740043068325,0.73255,2730.1,2729.9,0.5514]
[1740043069224,3.2078,2730.2,2729.9,0.5514]
[1740043069425,3.94034,2730.2,2730.0,0.73257]
[1740043069723,0.73255,2730.1,2730.0,0.73257]
[1740043069923,3.2078,2730.2,2730.0,0.73257]
[1740043070224,3.94034,2730.2,2730.0,0.73257]
[1740043070525,3.94034,2730.2,2729.9,0.5514]
[1740043070724,3.94034,2730.2,2730.1,0.73255]
[1740043071021,3.94034,2730.2,2730.0,0.73256]
[1740043071925,3.94034,2730.2,2730.1,0.73255]
[1740043072126,3.2078,2730.2,2730.1,0.73255]
[1740043072425,0.5515,2730.4,2730.3,0.7325]
[1740043072825,1.28397,2730.4,2730.2,0.73251]
[1740043073026,0.5515,2730.4,2730.3,0.7325]
[1740043073324,0.5515,2730.4,2730.0,2.329]
[1740043073724,0.5515,2730.4,2730.3,0.7325]
[1740043073926,3.7435,2730.5,2730.4,0.73247]
[1740043074123,3.2078,2730.5,2730.4,0.73247]
[1740043074322,3.94025,2730.5,2730.3,0.73248]
[1740043074523,3.2078,2730.5,2730.4,1.27187]
[1740043076021,3.94025,2730.5,2730.4,0.5394]
[1740043076225,4.53005,2730.5,2730.4,0.5394]
[1740043077224,4.53005,2730.5,2730.4,1.27187]
[1740043078623,3.2078,2730.5,2730.4,1.27187]
[1740043083532,1.28762,2730.6,2730.4,1.27187]
[1740043083733,3.2078,2730.5,2730.4,1.27187]
[1740043084134,3.94025,2730.5,2730.4,0.5394]
[1740043084833,3.94025,2730.5,2730.3,0.73249]
[1740043084834,0.73252,2730.3,2730.1,3.06154]
[1740043085031,0.5913,2730.2,2730.1,0.73254]
[1740043088633,0.5913,2730.2,2730.0,2.8765]
[1740043088930,0.73255,2730.1,2730.0,1.28008]
[1740043089134,1.30725,2730.1,2730.0,0.5475]
[1740043089634,0.5747,2730.1,2729.7,1.1433]
[1740043089939,1.2762,2730.0,2729.8,1.30871]
[1740043090932,0.5436,2730.0,2729.8,0.5761]
[1740043091140,0.5436,2730.0,2729.9,0.73261]
[1740043091333,0.5436,2730.0,2729.8,0.5761]
[1740043091538,1.2762,2730.0,2729.8,1.30873]
[1740043092339,0.5436,2730.0,2729.8,0.5761]
[1740043092539,1.27619,2730.0,2729.8,1.30873]
[1740043092839,1.27619,2730.0,2729.8,0.5761]
[1740043093039,1.27619,2730.0,2729.8,1.30873]
[1740043093537,0.5436,2730.0,2729.8,0.5761]
[1740043093738,1.27618,2730.0,2729.8,1.30871]
[1740043094035,0.73261,2729.9,2729.8,0.5761]
[1740043094236,3.94041,2729.9,2729.8,0.5761]
[1740043096029,3.94041,2729.9,2729.8,1.30873]
[1740043096440,3.94041,2729.9,2729.8,0.5761]
[1740043096640,3.94041,2729.9,2729.8,1.30873]
[1740043098140,3.94041,2729.9,2729.8,0.5761]
[1740043098341,3.94041,2729.9,2729.8,1.30873]
[1740043101135,3.94041,2729.9,2729.8,0.5761]
[1740043101341,3.94041,2729.9,2729.8,1.30873]
[1740043102142,3.94041,2729.9,2729.8,0.5761]
[1740043102344,3.94041,2729.9,2729.8,1.30873]
[1740043105141,3.94041,2729.9,2729.8,0.5761]
[1740043105442,3.94041,2729.9,2729.8,1.30873]
[1740043108843,3.94041,2729.9,2729.8,0.73263]
[1740043109943,3.2078,2729.9,2729.5,1.6619]
[1740043110441,0.73265,2729.8,2729.7,0.73264]
[1740043111143,3.2078,2729.9,2729.5,1.6619]
[1740043111444,3.94042,2729.9,2729.8,0.73263]
[1740043112745,3.94042,2729.9,2729.5,1.6619]
[1740043113043,3.2078,2729.9,2729.5,1.6619]
[1740043113345,0.73265,2729.8,2729.7,0.73264]
[1740043113648,3.94042,2729.9,2729.8,0.73263]
[1740043120245,3.94042,2729.9,2729.5,3.9909]
[1740043120448,3.94042,2729.9,2729.8,0.73263]
[1740043120749,3.2078,2729.9,2729.8,0.73263]
[1740043121854,0.5436,2730.0,2729.8,0.73263]
[1740043122155,1.27618,2730.0,2729.9,0.5619]
[1740043122352,4.48398,2730.0,2729.9,0.5619]
[1740043125248,3.7514,2730.0,2729.6,0.5549]
[1740043125448,0.73261,2729.9,2729.8,0.73263]
[1740043128552,3.94041,2729.9,2729.8,0.73263]
[1740043129150,3.2078,2729.9,2729.6,0.5549]
[1740043129350,0.73264,2729.8,2729.7,0.73264]
[1740043130051,3.2078,2729.9,2729.6,0.5549]
[1740043130249,1.1324,2729.8,2729.6,0.5549]
[1740043130450,1.1324,2729.8,2729.6,1.28757]
[1740043130451,0.73266,2729.7,2729.6,1.28757]
[1740043130750,0.73266,2729.7,2729.6,1.28758]
[1740043131051,1.1324,2729.8,2729.0,3.2078]
[1740043131246,0.73273,2729.5,2729.2,1.1228]
[1740043131445,0.73272,2729.5,2729.3,0.73275]
[1740043131650,3.7708,2729.6,2729.2,1.1228]
[1740043131860,4.5035,2729.6,2729.4,0.73273]
[1740043132157,4.5035,2729.6,2729.5,0.5622]
[1740043132546,3.2078,2729.6,2729.5,0.5622]
[1740043132747,3.2078,2729.6,2729.5,1.29492]
[1740043133655,0.005493,2729.7,2729.6,0.73269]
[1740043133953,0.005493,2729.7,2729.6,1.82559]
[1740043135455,0.005493,2729.7,2728.7,3.2078]
[1740043135761,3.9406,2729.2,2728.8,0.5429]
[1740043135955,3.9406,2729.2,2728.9,0.73287]
[1740043136355,3.2078,2729.2,2728.8,0.5429]
[1740043136558,3.94061,2729.2,2728.9,0.73287]
[1740043136961,3.2078,2729.2,2728.9,0.73287]
[1740043137261,0.73283,2729.1,2728.7,6.6446]
[1740043137561,0.5698,2729.1,2728.8,0.73288]
[1740043137862,0.5698,2729.1,2728.9,0.73287]
[1740043138163,3.94061,2729.2,2729.0,0.551]
[1740043138459,3.2078,2729.2,2729.0,0.551]
[1740043138661,3.2078,2729.2,2729.1,1.1143]
[1740043140463,4.3521,2729.5,2729.1,1.1143]
[1740043140661,3.2078,2729.2,2729.1,1.1143]
[1740043141064,1.1443,2729.5,2729.1,1.1143]
[1740043141364,0.73277,2729.3,2729.1,1.1143]
[1740043142266,1.1443,2729.5,2729.1,1.1143]
[1740043142660,0.73274,2729.5,2729.2,3.06178]
[1740043143163,0.73276,2729.4,2729.2,2.329]
[1740043143465,0.73276,2729.4,2729.2,3.06179]
[1740043144065,0.73276,2729.4,2729.2,2.329]
[1740043144461,0.5645,2729.5,2729.2,3.06179]
[1740043144666,1.29724,2729.5,2729.2,3.06179]
[1740043145364,0.5645,2729.5,2729.2,3.06179]
[1740043145566,0.73274,2729.4,2729.2,3.06179]
[1740043146066,0.5645,2729.5,2729.2,3.06179]
[1740043146067,0.5645,2729.5,2729.2,2.329]
[1740043146364,0.73276,2729.4,2729.2,2.329]
[1740043146759,0.73277,2729.3,2729.2,2.329]
[1740043147267,0.73275,2729.4,2729.2,3.06179]
[1740043148363,0.73277,2729.3,2729.1,1.84711]
[1740043148569,0.73276,2729.4,2729.2,0.73279]
[1740043149369,0.5645,2729.5,2729.1,3.4433]
[1740043149568,0.73275,2729.4,2729.2,0.73277]
[1740043150764,0.73275,2729.4,2729.2,0.73278]
[1740043152470,0.73275,2729.4,2729.2,0.7328]
[1740043152771,0.73275,2729.4,2729.1,3.4433]
[1740043153071,0.73275,2729.4,2729.3,0.73277]
[1740043154272,3.7723,2729.5,2729.3,0.73277]
[1740043154462,3.7723,2729.5,2729.1,3.4433]
[1740043154667,0.73276,2729.4,2729.2,0.73279]
[1740043155269,3.7723,2729.5,2729.1,3.4433]
[1740043155464,3.7723,2729.5,2729.3,0.73276]
[1740043155665,0.73275,2729.4,2729.1,3.4433]
[1740043155866,0.73275,2729.4,2729.2,0.7328]
[1740043156172,0.73275,2729.4,2729.3,0.0013459]
[1740043158271,0.73274,2729.4,2729.3,0.7340959]
[1740043158971,0.73274,2729.4,2729.3,0.0013459]
[1740043162977,3.94054,2729.4,2729.3,0.0013459]
[1740043166178,1.83193,2729.3,2728.8,2.329]
[1740043166378,0.73288,2728.9,2728.8,2.329]
[1740043168075,1.1393,2729.0,2728.6,1.754]
[1740043168274,0.73293,2728.7,2728.6,1.754]
[1740043168474,0.73293,2728.7,2728.6,4.083]
[1740043169677,0.73293,2728.7,2728.6,1.754]
[1740043170079,0.73293,2728.7,2728.6,4.083]
[1740043170279,0.73293,2728.7,2728.6,1.754]
[1740043171886,1.90683,2728.7,2728.6,1.754]
[1740043172589,1.90683,2728.7,2728.6,0.58]
[1740043173286,0.73293,2728.7,2728.6,0.58]
[1740043180988,3.94073,2728.7,2728.6,0.58]
[1740043188890,3.2078,2728.7,2728.4,0.733]
[1740043189191,0.73298,2728.5,2728.4,1.2805]
[1740043189891,3.2078,2728.7,2728.4,0.5475]
[1740043190093,0.73298,2728.6,2728.5,0.73298]
[1740043191290,0.73298,2728.6,2728.4,0.5475]
[1740043191495,0.73298,2728.6,2728.4,1.28049]
[1740043191688,0.73298,2728.6,2728.5,0.73298]
[1740043192595,0.73298,2728.6,2728.4,1.28049]
[1740043192796,3.2078,2728.7,2728.4,0.5475]
[1740043192992,0.73298,2728.6,2728.4,1.28049]
[1740043193295,0.73298,2728.6,2728.5,0.73298]
[1740043195795,3.2078,2728.7,2728.4,0.5475]
[1740043196094,0.73296,2728.6,2728.5,0.73297]
[1740043196493,0.73296,2728.6,2728.5,41.53297]
[1740043196693,3.2078,2728.7,2728.4,0.5475]
[1740043196898,0.73296,2728.6,2728.5,0.73297]
[1740043200700,0.73296,2728.6,2728.4,0.5475]
[1740043200905,3.2078,2728.7,2728.4,0.5475]
[1740043201104,3.2078,2728.7,2728.3,2.329]
[1740043201105,3.2078,2728.7,2727.4,20.323]
[1740043201400,1.1843,2728.9,2728.1,0.587]
[1740043201401,0.73308,2728.2,2728.1,0.587]
[1740043201594,0.73306,2728.2,2728.1,0.587]
[1740043203203,1.1059,2728.3,2728.1,0.587]
[1740043203501,1.83896,2728.3,2728.1,1.32009]
[1740043204100,0.73306,2728.2,2728.1,0.587]
[1740043204401,1.83896,2728.3,2728.1,1.32009]
[1740043204603,1.1059,2728.3,2728.1,0.587]
[1740043204900,0.73306,2728.2,2728.1,0.587]
[1740043205298,1.1059,2728.3,2728.1,0.587]